bitfinex-derivatives/quotes_BTCF0:USTF0_20241029
["timestamp","ask_amount","ask_price","bid_price","bid_amount"]
[1730184157146,0.3608,71244.0,71237.0,0.09448941]
[1730184157340,0.3608,71244.0,71235.0,0.3608]
[1730184157341,0.3608,71244.0,71243.0,0.09448941]
[1730184157565,0.3608,71244.0,71243.0,0.16472341]
[1730184157742,0.3952025,71244.0,71243.0,0.16472341]
[1730184158440,0.3608,71244.0,71243.0,0.16472341]
[1730184159650,0.3618,71244.0,71243.0,0.16472341]
[1730184160242,0.3658,71244.0,71243.0,0.16572341]
[1730184160452,0.3658,71244.0,71243.0,0.16672341]
[1730184163149,0.005,71244.0,71243.0,0.002]
[1730184163347,0.075233,71244.0,71243.0,0.002]
[1730184163555,0.075233,71244.0,71243.0,0.09648941]
[1730184167353,0.072233,71244.0,71243.0,0.09548941]
[1730184168144,0.072233,71244.0,71243.0,0.09448941]
[1730184168952,0.070233,71244.0,71243.0,0.09448941]
[1730184169259,0.10463495,71244.0,71243.0,0.16772341]
[1730184169456,0.14775582,71244.0,71243.0,0.16772341]
[1730184169759,0.14775582,71244.0,71243.0,0.16872341]
[1730184169960,0.14775591,71244.0,71243.0,0.16872341]
[1730184170255,0.10463511,71244.0,71243.0,0.16872341]
[1730184170650,0.14775597,71244.0,71243.0,0.16872341]
[1730184170958,0.10463511,71244.0,71243.0,0.16772341]
[1730184172153,0.10463511,71244.0,71243.0,0.16472341]
[1730184172354,0.10463511,71244.0,71243.0,0.17072341]
[1730184173256,0.10463511,71244.0,71243.0,0.16972341]
[1730184174762,0.10463511,71244.0,71243.0,0.16872341]
[1730184174963,0.10463511,71244.0,71243.0,0.17072341]
[1730184175858,0.10463511,71244.0,71243.0,0.16472341]
[1730184176164,0.10463511,71244.0,71243.0,0.16872341]
[1730184176465,0.10463511,71244.0,71243.0,0.16572341]
[1730184176763,0.070233,71244.0,71243.0,0.16972341]
[1730184177255,0.070233,71244.0,71243.0,0.16572341]
[1730184177471,0.070233,71244.0,71243.0,0.16872341]
[1730184177862,0.070233,71244.0,71243.0,0.005]
[1730184178553,0.10463721,71244.0,71243.0,0.004]
[1730184179459,0.10563721,71244.0,71241.0,0.070236]
[1730184179661,0.03440421,71243.0,71241.0,0.070236]
[1730184179864,0.3608,71242.0,71241.0,0.070236]
[1730184180162,0.39520421,71242.0,71241.0,0.070236]
[1730184180358,0.39520419,71242.0,71241.0,0.070236]
[1730184181966,0.46543919,71242.0,71241.0,0.070236]
[1730184182162,0.46543919,71242.0,71241.0,0.071236]
[1730184183051,0.46543919,71242.0,71241.0,0.073236]
[1730184183251,0.48138864,71242.0,71241.0,0.073236]
[1730184183463,0.48138864,71242.0,71241.0,0.071236]
[1730184183760,0.48138864,71242.0,71241.0,0.073236]
[1730184186270,0.48138864,71242.0,71241.0,0.003]
[1730184186459,0.52451237,71242.0,71241.0,0.003]
[1730184188569,0.52451237,71242.0,71241.0,0.002]
[1730184188770,0.52451237,71242.0,71241.0,0.003]
[1730184190679,0.48138864,71242.0,71241.0,0.003]
[1730184191473,0.12058864,71242.0,71241.0,0.003]
[1730184191674,0.52451234,71242.0,71241.0,0.003]
[1730184191976,0.48138864,71242.0,71241.0,0.003]
[1730184192476,0.52451225,71242.0,71241.0,0.003]
[1730184193881,0.48138864,71242.0,71241.0,0.003]
[1730184194070,0.5245123,71242.0,71241.0,0.003]
[1730184195184,0.1637123,71242.0,71241.0,0.003]
[1730184195482,0.5245123,71242.0,71241.0,0.003]
[1730184195677,0.43832785,71242.0,71241.0,0.003]
[1730184195986,0.43832785,71242.0,71241.0,0.073236]
[1730184196877,0.33462785,71242.0,71241.0,0.494356]
[1730184197276,0.33462785,71242.0,71241.0,0.073236]
[1730184204702,0.33462785,71242.0,71241.0,0.13523625]
[1730184205084,0.3690283,71242.0,71241.0,0.13523625]
[1730184205284,0.03440045,71242.0,71241.0,0.55635625]
[1730184205489,0.00210594,71251.0,71250.0,0.070228]
[1730184205689,0.00210594,71251.0,71250.0,0.13222825]
[1730184206889,0.00610594,71251.0,71250.0,0.13322825]
[1730184207293,0.00610594,71251.0,71250.0,0.071228]
[1730184207481,0.13933319,71251.0,71250.0,0.002]
[1730184207891,0.20353319,71251.0,71250.0,0.002]
[1730184208594,0.13753294,71251.0,71250.0,0.001]
[1730184208789,0.14153294,71251.0,71250.0,0.001]
[1730184209094,0.070233,71245.0,71242.0,0.16470846]
[1730184209290,0.3608,71245.0,71242.0,0.16470846]
[1730184209491,0.070234,71244.0,71242.0,0.16470846]
[1730184209694,0.070234,71244.0,71243.0,0.070234]
[1730184210095,0.14775454,71244.0,71243.0,0.070234]
[1730184210786,0.1046351,71244.0,71243.0,0.070234]
[1730184211991,0.1046351,71244.0,71243.0,0.071234]
[1730184212383,0.10463509,71244.0,71243.0,0.071234]
[1730184212591,0.14775453,71244.0,71243.0,0.071234]
[1730184213494,0.14775453,71244.0,71243.0,0.08710862]
[1730184213996,0.07752053,71244.0,71243.0,0.08710862]
[1730184214194,0.3608,71245.0,71244.0,0.070233]
[1730184215388,0.3618,71245.0,71244.0,0.070233]
[1730184215589,0.432033,71245.0,71244.0,0.070233]
[1730184216196,0.070236,71242.0,71240.0,0.070237]
[1730184216502,0.070236,71242.0,71238.0,0.09447346]
[1730184216503,0.070236,71242.0,71241.0,0.070236]
[1730184217097,0.3618,71245.0,71238.0,0.09447346]
[1730184217303,0.070238,71240.0,71239.0,0.070238]
[1730184218197,0.09447346,71244.0,71240.0,0.001]
[1730184218198,0.070236,71241.0,71240.0,0.001]
[1730184218403,0.1046392,71241.0,71240.0,0.001]
[1730184218601,0.1046392,71241.0,71240.0,0.004]
[1730184218792,0.1046392,71241.0,71240.0,0.003]
[1730184218990,0.0344032,71241.0,71239.0,0.003]
[1730184219194,0.1046402,71240.0,71239.0,0.008]
[1730184219594,0.0344032,71240.0,71237.0,0.07024]
[1730184219799,0.09447346,71244.0,71237.0,0.07024]
[1730184219800,0.0344032,71239.0,71237.0,0.07024]
[1730184220004,0.070239,71238.0,71237.0,0.07024]
[1730184220305,0.431037,71241.0,71240.0,0.070237]
[1730184220600,0.431037,71241.0,71240.0,0.16471046]
[1730184220601,0.46543923,71241.0,71240.0,0.16471046]
[1730184220905,0.46543881,71241.0,71240.0,0.16471046]
[1730184221295,0.431036,71241.0,71240.0,0.16471046]
[1730184222210,0.46543879,71241.0,71240.0,0.16671046]
[1730184222408,0.46543879,71241.0,71240.0,0.17071046]
[1730184222607,0.46543879,71241.0,71240.0,0.076237]
[1730184222798,0.46543879,71241.0,71240.0,0.17071046]
[1730184225098,0.46543879,71241.0,71221.0,0.45527346]
[1730184225099,0.60304069,71241.0,71221.0,0.45527346]
[1730184225297,0.3608,71233.0,71221.0,0.52495346]
[1730184225505,0.070251,71226.0,71225.0,0.1829513]
[1730184225703,0.1046564,71226.0,71225.0,0.1829513]
[1730184226505,0.1046564,71226.0,71225.0,0.1969513]
[1730184226899,0.10465754,71226.0,71225.0,0.1969513]
[1730184227710,0.10465754,71226.0,71225.0,0.2069513]
[1730184228607,0.14778379,71226.0,71225.0,0.1969513]
[1730184228810,0.14878379,71226.0,71225.0,0.2109513]
[1730184229305,0.071251,71226.0,71225.0,0.2109513]
[1730184229813,0.001,71226.0,71225.0,0.2109513]
[1730184239815,0.001,71226.0,71225.0,0.5717513]
[1730184240716,0.001,71226.0,71225.0,0.9929513]
[1730184241113,0.001,71226.0,71225.0,0.5717513]
[1730184245315,0.03540591,71226.0,71225.0,0.5717513]
[1730184245514,0.001,71226.0,71225.0,0.5717513]
[1730184248413,0.001,71226.0,71225.0,0.53928302]
[1730184249718,0.03540577,71226.0,71225.0,0.53928302]
[1730184250811,0.001,71226.0,71225.0,0.53928302]
[1730184251313,0.03540623,71226.0,71225.0,0.53928302]
[1730184251517,0.001,71226.0,71225.0,0.53928302]
[1730184252031,0.03540657,71226.0,71225.0,0.53928302]
[1730184252220,0.001,71226.0,71225.0,0.53928302]
[1730184256525,0.001,71226.0,71225.0,0.6012882]
[1730184257140,0.3608,71233.0,71232.0,0.070245]
[1730184257330,0.3608,71233.0,71232.0,0.13225018]
[1730184257828,0.3608,71239.0,71238.0,0.070239]
[1730184258019,0.39520304,71239.0,71238.0,0.13224418]
[1730184258219,0.3608,71239.0,71238.0,0.13224418]
[1730184259629,0.3608,71239.0,71238.0,0.13724418]
[1730184259828,0.070233,71245.0,71239.0,0.070238]
[1730184260019,0.070233,71245.0,71244.0,0.13223818]
[1730184260326,0.10463462,71245.0,71244.0,0.13223818]
[1730184260714,0.070233,71245.0,71244.0,0.13223818]
[1730184260918,0.10463344,71245.0,71244.0,0.13223818]
[1730184261117,0.10563344,71245.0,71244.0,0.13223818]
[1730184262023,0.10763344,71245.0,71244.0,0.13223818]
[1730184262723,0.071233,71245.0,71244.0,0.13223818]
[1730184262927,0.073233,71245.0,71244.0,0.13223818]
[1730184263331,0.10763389,71245.0,71244.0,0.13223818]
[1730184263531,0.03740085,71245.0,71244.0,0.13223818]
[1730184263726,0.003,71245.0,71244.0,0.13223818]
[1730184265626,0.003,71245.0,71244.0,0.070233]
[1730184265829,0.073233,71245.0,71244.0,0.070233]
[1730184266536,0.10763437,71245.0,71244.0,0.070233]
[1730184267231,0.10763437,71245.0,71242.0,0.06200518]
[1730184267232,0.15075415,71245.0,71242.0,0.06200518]
[1730184267528,0.12790627,71244.0,71242.0,0.06200518]
[1730184267721,0.073233,71245.0,71242.0,0.14803768]
[1730184267722,0.03440137,71243.0,71242.0,0.14803768]
[1730184267932,0.03440137,71243.0,71242.0,0.07780268]
[1730184267933,0.07751982,71243.0,71242.0,0.07780268]
[1730184268118,0.07751982,71243.0,71242.0,0.21004286]
[1730184268931,0.07751982,71243.0,71242.0,0.14803768]
[1730184269135,0.07751982,71243.0,71242.0,0.21004286]
[1730184269434,0.07751982,71243.0,71242.0,0.14803768]
[1730184270626,0.07751982,71243.0,71242.0,0.14903768]
[1730184271424,0.07751982,71243.0,71242.0,0.21104286]
[1730184271946,0.07751982,71243.0,71242.0,0.14903768]
[1730184272122,0.07751982,71243.0,71242.0,0.21104286]
[1730184272326,0.07751982,71243.0,71242.0,0.0870325]
[1730184272636,0.07751982,71243.0,71242.0,0.14903768]
[1730184273623,0.07751804,71243.0,71242.0,0.14903768]
[1730184273827,0.07751711,71243.0,71242.0,0.07880268]
[1730184274022,0.07751711,71243.0,71242.0,0.14903768]
[1730184274235,0.070231,71247.0,71242.0,0.07880268]
[1730184274542,0.070231,71247.0,71246.0,0.13223718]
[1730184274738,0.1046304,71247.0,71246.0,0.13223718]
[1730184275433,0.1076304,71247.0,71246.0,0.13223718]
[1730184276845,0.1106304,71247.0,71246.0,0.13223718]
[1730184280334,0.0403994,71247.0,71246.0,0.13223718]
[1730184280645,0.1106304,71247.0,71246.0,0.13223718]
[1730184282334,0.15375002,71247.0,71246.0,0.13223718]
[1730184287537,0.20413521,71247.0,71246.0,0.070232]
[1730184289244,0.15375002,71247.0,71246.0,0.070232]
[1730184291849,0.08351902,71247.0,71246.0,0.070232]
[1730184293553,0.0403994,71247.0,71246.0,0.070232]
[1730184295650,0.0403994,71247.0,71246.0,0.198732]
[1730184296046,0.006,71247.0,71246.0,0.198732]
[1730184297355,0.04039689,71247.0,71246.0,0.198732]
[1730184298455,0.3608,71256.0,71255.0,0.070223]
[1730184298645,0.40391154,71256.0,71255.0,0.19423336]
[1730184299254,0.40391154,71256.0,71255.0,0.13222818]
[1730184300361,0.04311154,71256.0,71255.0,0.13222818]
[1730184300652,0.04711154,71256.0,71255.0,0.19523336]
[1730184300856,0.04711154,71256.0,71255.0,0.19623336]
[1730184301060,0.04711154,71256.0,71255.0,0.13422818]
[1730184301455,0.004,71256.0,71255.0,0.19623336]
[1730184301655,0.004,71256.0,71255.0,0.13422818]
[1730184302969,0.004,71256.0,71255.0,0.19623336]
[1730184304355,0.004,71256.0,71255.0,0.21203702]
[1730184304965,0.004,71256.0,71255.0,0.15003184]
[1730184312970,0.004,71256.0,71255.0,0.21203702]
[1730184313272,0.004,71256.0,71255.0,0.15003184]
[1730184313662,0.03838999,71256.0,71255.0,0.15003184]
[1730184315073,0.004,71256.0,71255.0,0.15003184]
[1730184323272,0.004,71256.0,71245.0,0.3608]
[1730184323471,0.070247,71231.0,71224.0,0.070253]
[1730184323673,0.070247,71231.0,71219.0,0.42280518]
[1730184323674,0.3608,71229.0,71226.0,0.01602995]
[1730184323971,0.3608,71246.0,71226.0,0.01602995]
[1730184323972,0.070236,71242.0,71227.0,0.064]
[1730184324171,0.3608,71239.0,71227.0,0.064]
[1730184324475,0.3608,71239.0,71238.0,0.13224418]
[1730184325568,0.3608,71239.0,71238.0,0.06200518]
[1730184325975,0.3608,71239.0,71238.0,0.13224418]
[1730184326275,0.3648,71239.0,71238.0,0.13224418]
[1730184326473,0.3678,71239.0,71238.0,0.13224418]
[1730184326674,0.007,71239.0,71238.0,0.13224418]
[1730184326868,0.004,71239.0,71238.0,0.13224418]
[1730184327075,0.070232,71246.0,71238.0,0.13324418]
[1730184327283,0.001,71239.0,71238.0,0.071239]
[1730184327475,0.001,71239.0,71238.0,0.070239]
[1730184327673,0.001,71239.0,71238.0,0.073239]
[1730184328373,0.001,71239.0,71238.0,0.13524418]
[1730184329069,0.070234,71244.0,71238.0,0.13524418]
[1730184329269,0.070234,71244.0,71243.0,0.06200518]
[1730184330270,0.073234,71244.0,71243.0,0.06200518]
[1730184331173,0.070234,71244.0,71243.0,0.06200518]
[1730184331377,0.073234,71244.0,71243.0,0.06200518]
[1730184332273,0.077234,71244.0,71243.0,0.06200518]
[1730184332477,0.007,71244.0,71243.0,0.19424436]
[1730184332771,0.3608,71248.0,71247.0,0.070231]
[1730184332985,0.3608,71248.0,71247.0,0.13223618]
[1730184333179,0.42048,71265.0,71250.0,0.070227]
[1730184333180,0.070223,71255.0,71250.0,0.070227]
[1730184333377,0.070223,71255.0,71243.0,0.06200518]
[1730184333378,0.070223,71255.0,71254.0,0.06200518]
[1730184334582,0.10461807,71255.0,71254.0,0.06200518]
[1730184334774,0.11361807,71255.0,71254.0,0.06300518]
[1730184335382,0.47441807,71255.0,71254.0,0.06300518]
[1730184335683,0.51753114,71255.0,71254.0,0.06300518]
[1730184335879,0.52453114,71255.0,71254.0,0.06400518]
[1730184336585,0.52453113,71255.0,71254.0,0.06400518]
[1730184337482,0.52453113,71255.0,71254.0,0.26490518]
[1730184337483,0.52452745,71255.0,71254.0,0.26490518]
[1730184338174,0.16372745,71255.0,71254.0,0.26490518]
[1730184338574,0.12061696,71255.0,71254.0,0.26490518]
[1730184339878,0.54165696,71255.0,71254.0,0.002]
[1730184341880,0.55813242,71255.0,71254.0,0.002]
[1730184342390,0.52373846,71255.0,71254.0,0.002]
[1730184343279,0.10269846,71255.0,71254.0,0.002]
[1730184343480,0.0008,71271.0,71254.0,1.12495775]
[1730184343777,0.070202,71277.0,71269.0,0.13221418]
[1730184344094,0.070206,71273.0,71269.0,0.13221418]
[1730184345082,0.00910531,71270.0,71269.0,0.13221418]
[1730184345488,0.01810531,71270.0,71269.0,0.13221418]
[1730184345883,0.01110531,71270.0,71269.0,0.13221418]
[1730184346090,0.01810531,71270.0,71269.0,0.13321418]
[1730184346489,0.00910531,71270.0,71269.0,0.16664552]
[1730184346791,0.01110531,71270.0,71269.0,0.16664552]
[1730184349579,0.01110531,71270.0,71269.0,0.18319165]
[1730184349580,0.009,71270.0,71269.0,0.18319165]
[1730184349799,0.009,71270.0,71269.0,0.27762817]
[1730184350288,0.009,71270.0,71269.0,0.18319165]
[1730184351696,0.009,71270.0,71269.0,0.34052817]
[1730184351887,0.009,71270.0,71269.0,0.24609165]
[1730184354498,0.3608,71281.0,71270.0,0.070208]
[1730184354695,0.070171,71308.0,71280.0,0.3608]
[1730184354696,0.3608,71288.0,71280.0,0.3608]
[1730184354903,0.3608,71288.0,71287.0,0.070191]
[1730184355488,0.3608,71294.0,71284.0,0.09443652]
[1730184355694,0.3608,71294.0,71291.0,0.09443652]
[1730184355899,0.3608,71294.0,71293.0,0.070185]
[1730184357297,0.3608,71294.0,71293.0,0.071185]
[1730184358095,0.3608,71294.0,71293.0,0.072185]
[1730184362008,0.430984,71294.0,71293.0,0.072185]
[1730184363297,0.4653604,71294.0,71293.0,0.072185]
[1730184363504,0.3608,71294.0,71293.0,0.072185]
[1730184364206,0.3608,71295.0,71294.0,0.070184]
[1730184364404,0.3608,71295.0,71294.0,0.16462052]
[1730184364906,0.430983,71295.0,71294.0,0.16462052]
[1730184365506,0.430983,71295.0,71294.0,0.16562052]
[1730184366611,0.3608,71295.0,71294.0,0.16562052]
[1730184366902,0.3608,71295.0,71294.0,0.16662052]
[1730184367704,0.3608,71297.0,71294.0,0.16662052]
[1730184368813,0.070183,71296.0,71294.0,0.16662052]
[1730184370705,0.070183,71295.0,71294.0,0.16562052]
[1730184371114,0.070183,71295.0,71294.0,0.16662052]
[1730184372618,0.1045594,71295.0,71294.0,0.16662052]
[1730184375112,0.070183,71295.0,71294.0,0.002]
[1730184375317,0.10455941,71295.0,71294.0,0.002]
[1730184375507,0.14764986,71295.0,71294.0,0.002]
[1730184376716,0.14764986,71295.0,71294.0,0.09643652]
[1730184377412,0.14764986,71295.0,71294.0,0.16662052]
[1730184379103,0.14765117,71295.0,71294.0,0.16662052]
[1730184379508,0.10456088,71295.0,71294.0,0.16662052]
[1730184381626,0.03437788,71295.0,71294.0,0.16662052]
[1730184382310,0.431702,71297.0,71296.0,0.070182]
[1730184382511,0.430982,71297.0,71296.0,0.070182]
[1730184382923,0.3608,71297.0,71295.0,0.1381]
[1730184383223,0.070182,71296.0,71295.0,0.1381]
[1730184383425,0.10455846,71296.0,71295.0,0.1381]
[1730184383608,0.070182,71296.0,71295.0,0.1381]
[1730184383922,0.3608,71296.0,71295.0,0.30271952]
[1730184384220,0.3608,71296.0,71295.0,0.30371952]
[1730184384414,0.39517542,71296.0,71295.0,0.30371952]
[1730184385712,0.3608,71296.0,71295.0,0.30371952]
[1730184385915,0.3608,71296.0,71295.0,0.30471952]
[1730184386513,0.3608,71296.0,71295.0,0.30371952]
[1730184386719,0.3608,71296.0,71295.0,0.30471952]
[1730184387624,0.39517578,71296.0,71295.0,0.30471952]
[1730184389718,0.39517578,71296.0,71295.0,0.002]
[1730184389719,0.46535778,71296.0,71295.0,0.002]
[1730184390522,0.10455778,71296.0,71295.0,0.09643652]
[1730184390827,0.10455778,71296.0,71295.0,0.16661952]
[1730184391527,0.070182,71296.0,71295.0,0.16661952]
[1730184391716,0.430982,71296.0,71295.0,0.16661952]
[1730184393429,0.070182,71296.0,71295.0,0.16661952]
[1730184394828,0.430982,71296.0,71295.0,0.16661952]
[1730184395425,0.070182,71296.0,71295.0,0.16661952]
[1730184395630,0.430982,71296.0,71295.0,0.16661952]
[1730184396628,0.430982,71296.0,71295.0,0.13414154]
[1730184397521,0.1,71300.0,71298.0,0.070179]
[1730184397722,0.1,71300.0,71299.0,0.19653754]
[1730184398420,0.1,71300.0,71299.0,0.22897395]
[1730184400025,0.1,71300.0,71299.0,0.134579]
[1730184400227,0.1,71300.0,71299.0,0.22897395]
[1730184400428,0.17745407,71300.0,71299.0,0.22997395]
[1730184400636,0.1343716,71300.0,71299.0,0.22997395]
[1730184400837,0.1343716,71300.0,71299.0,0.23097395]
[1730184401042,0.1343716,71300.0,71299.0,0.24400357]
[1730184402540,0.1343716,71300.0,71299.0,0.15011506]
[1730184402541,0.17745428,71300.0,71299.0,0.15011506]
[1730184402850,0.17745428,71300.0,71299.0,0.09234712]
[1730184403736,0.22779606,71300.0,71299.0,0.16252612]
[1730184404845,0.22779606,71300.0,71299.0,0.1494965]
[1730184405436,0.22779508,71300.0,71299.0,0.1494965]
[1730184405940,0.27631703,71312.0,71303.0,0.070175]
[1730184405941,0.18192208,71312.0,71303.0,0.070175]
[1730184406136,0.04307979,71309.0,71308.0,0.07017]
[1730184406949,0.070165,71314.0,71313.0,0.070166]
[1730184407145,0.05033537,71319.0,71313.0,0.09439495]
[1730184407340,0.05033537,71319.0,71318.0,0.16455595]
[1730184408352,0.12049537,71319.0,71318.0,0.16455595]
[1730184408744,0.09439495,71332.0,71318.0,0.16455595]
[1730184408745,0.3608,71334.0,71333.0,0.070146]
[1730184409048,0.3608,71338.0,71334.0,0.070144]
[1730184409348,0.3608,71338.0,71336.0,0.09439495]
[1730184409549,0.3608,71338.0,71337.0,0.070142]
[1730184410055,0.3608,71338.0,71336.0,0.09439495]
[1730184410649,0.3608,71338.0,71336.0,0.09539495]
[1730184411450,0.3608,71338.0,71336.0,0.09639495]
[1730184413245,0.430941,71338.0,71336.0,0.09639495]
[1730184413642,0.3608,71338.0,71336.0,0.002]
[1730184413948,0.070142,71337.0,71336.0,0.002]
[1730184415148,0.070142,71337.0,71336.0,0.001]
[1730184415355,0.070142,71337.0,71336.0,0.002]
[1730184419853,0.070142,71337.0,71336.0,0.09639495]
[1730184421665,0.070142,71337.0,71336.0,0.16653795]
[1730184422750,0.3608,71339.0,71338.0,0.070141]
[1730184422957,0.3608,71339.0,71338.0,0.16453595]
[1730184423964,0.3608,71339.0,71338.0,0.16553595]
[1730184424656,0.3608,71339.0,71338.0,0.22833595]
[1730184425258,0.3608,71339.0,71338.0,0.22933595]
[1730184426952,0.00210298,71349.0,71338.0,0.22933595]
[1730184426953,0.3608,71360.0,71338.0,0.94051495]
[1730184427153,0.070111,71369.0,71365.0,0.070114]
[1730184427460,0.07011,71369.0,71368.0,0.45519495]
[1730184428057,0.4281,71383.0,71368.0,0.45519495]
[1730184428363,0.070107,71373.0,71368.0,0.3608]
[1730184429151,0.3608,71382.0,71368.0,0.3608]
[1730184429352,0.070102,71378.0,71377.0,0.09439495]
[1730184429960,0.070109,71371.0,71368.0,0.3618]
[1730184430166,0.07011,71369.0,71368.0,0.002]
[1730184430360,0.0665,71370.0,71362.0,0.09439495]
[1730184430869,0.070116,71363.0,71362.0,0.09439495]
[1730184431859,0.070116,71363.0,71354.0,0.3608]
[1730184431860,0.07012,71359.0,71358.0,0.09439495]
[1730184432068,0.070124,71356.0,71354.0,0.45519495]
[1730184432362,0.0675,71362.0,71354.0,0.09439495]
[1730184432363,0.070124,71355.0,71354.0,0.09439495]
[1730184432764,0.070128,71351.0,71350.0,0.09649646]
[1730184434267,0.0613,71359.0,71346.0,0.3608]
[1730184434268,0.131421,71359.0,71346.0,0.3608]
[1730184434468,0.070132,71347.0,71346.0,0.45519495]
[1730184435458,0.070132,71347.0,71346.0,0.45619495]
[1730184436257,0.070132,71347.0,71346.0,0.45519495]
[1730184436471,0.070132,71347.0,71346.0,0.46019495]
[1730184437064,0.070132,71347.0,71346.0,0.45619495]
[1730184437267,0.071132,71347.0,71346.0,0.45619495]
[1730184438770,0.001,71347.0,71346.0,0.52632795]
[1730184439280,0.001,71347.0,71346.0,1.0412029]
[1730184439479,0.00210252,71366.0,71365.0,0.070114]
[1730184439666,0.00210252,71366.0,71365.0,0.52530895]
[1730184440867,0.00310252,71366.0,71365.0,0.52630895]
[1730184441073,0.00310252,71366.0,71365.0,0.52730895]
[1730184441268,0.03744461,71366.0,71365.0,0.52730895]
[1730184442279,0.03744461,71366.0,71365.0,0.52630895]
[1730184442480,0.03744461,71366.0,71365.0,0.52730895]
[1730184443678,0.00310252,71366.0,71365.0,0.52730895]
[1730184444473,0.07321552,71366.0,71365.0,0.3628]
[1730184445275,0.107559,71366.0,71365.0,0.3628]
[1730184445478,0.398246,71366.0,71358.0,0.3608]
[1730184445776,0.07012,71359.0,71358.0,0.3608]
[1730184445970,0.10446606,71359.0,71358.0,0.3608]
[1730184446380,0.10446652,71359.0,71358.0,0.3608]
[1730184446972,0.10446652,71359.0,71358.0,0.3618]
[1730184447175,0.10446652,71359.0,71358.0,0.3628]
[1730184447680,0.08337948,71359.0,71358.0,0.002]
[1730184447884,0.08337948,71359.0,71358.0,0.001]
[1730184448081,0.08337948,71359.0,71348.0,0.16452595]
[1730184448082,0.63252182,71359.0,71348.0,0.16452595]
[1730184448380,0.070128,71352.0,71351.0,0.09439495]
[1730184449071,0.070128,71352.0,71351.0,0.16452295]
[1730184449484,0.071128,71352.0,71351.0,0.16452295]
[1730184449676,0.001,71352.0,71351.0,0.16452295]
[1730184452879,0.3608,71408.0,71372.0,0.70129748]
[1730184453084,0.3608,71408.0,71352.0,0.7204]
[1730184453085,0.070079,71402.0,71391.0,0.070088]
[1730184453378,0.03433962,71401.0,71400.0,0.07008]
[1730184453683,0.37358235,71408.0,71400.0,0.09439495]
[1730184453885,0.070077,71403.0,71400.0,0.09439495]
[1730184454087,0.070075,71406.0,71405.0,0.09439495]
[1730184454277,0.37358235,71408.0,71407.0,0.070073]
[1730184455778,0.4098975,71408.0,71407.0,0.070073]
[1730184456182,0.4108975,71408.0,71407.0,0.071073]
[1730184456590,0.4108975,71408.0,71407.0,0.001]
[1730184456788,0.4098975,71408.0,71407.0,0.001]
[1730184457173,0.4799695,71408.0,71407.0,0.001]
[1730184457380,0.4799695,71408.0,71407.0,0.002]
[1730184457985,0.4799695,71408.0,71394.0,0.09439495]
[1730184457986,0.09439495,71406.0,71394.0,0.09439495]
[1730184458185,0.09439495,71406.0,71398.0,0.070082]
[1730184458186,0.070076,71404.0,71398.0,0.070082]
[1730184458388,0.03631515,71403.0,71399.0,0.070081]
[1730184458580,0.03631515,71402.0,71399.0,0.070081]
[1730184458783,0.03631515,71401.0,71394.0,0.107239]
[1730184459080,0.03631515,71400.0,71398.0,0.070081]
[1730184459280,0.03631515,71399.0,71398.0,0.070081]
[1730184459792,0.070079,71402.0,71398.0,0.070081]
[1730184459988,0.03569327,71401.0,71398.0,0.070081]
[1730184460186,0.03569327,71400.0,71398.0,0.070081]
[1730184460392,0.001,71401.0,71400.0,0.07008]
[1730184461290,0.09539495,71401.0,71396.0,0.070084]
[1730184461499,0.070084,71396.0,71395.0,0.3608]
[1730184461699,0.1054341,71396.0,71395.0,0.3608]
[1730184461893,0.070084,71396.0,71395.0,0.3608]
[1730184462094,0.10519766,71396.0,71395.0,0.3608]
[1730184462290,0.10517903,71396.0,71395.0,0.3608]
[1730184462489,0.10517903,71396.0,71393.0,0.070087]
[1730184462683,0.070084,71396.0,71393.0,0.070087]
[1730184463396,0.3608,71402.0,71395.0,0.001]
[1730184463609,0.3608,71427.0,71401.0,0.3608]
[1730184463898,0.3608,71427.0,71416.0,0.3608]
[1730184463899,0.070059,71422.0,71416.0,0.3608]
[1730184464192,0.09439495,71425.0,71401.0,0.00210058]
[1730184464193,0.3608,71419.0,71401.0,0.00210058]
[1730184464411,0.3608,71413.0,71402.0,0.09439495]
[1730184464710,0.3608,71413.0,71408.0,0.070071]
[1730184464711,0.070069,71412.0,71408.0,0.070071]
[1730184465009,0.070072,71408.0,71405.0,0.070075]
[1730184465413,0.070074,71406.0,71401.0,0.00210058]
[1730184465611,0.3608,71407.0,71402.0,0.070078]
[1730184465801,0.070076,71404.0,71402.0,0.070078]
[1730184467017,0.070076,71404.0,71402.0,0.071078]
[1730184467406,0.070077,71403.0,71402.0,0.071078]
[1730184467718,0.070077,71403.0,71401.0,0.00210058]
[1730184467719,0.070078,71402.0,71401.0,0.00210058]
[1730184467908,0.196378,71402.0,71401.0,0.00210058]
[1730184469210,0.197378,71402.0,71401.0,0.00210058]
[1730184470824,0.070086,71394.0,71387.0,0.070093]
[1730184471103,0.070086,71394.0,71390.0,0.070089]
[1730184471308,0.3608,71399.0,71391.0,0.09439495]
[1730184471808,0.070088,71392.0,71391.0,0.09439495]
[1730184472913,0.070098,71382.0,71381.0,0.16449295]
[1730184473224,0.3608,71393.0,71392.0,0.070088]
[1730184474721,0.430887,71393.0,71392.0,0.070088]
[1730184474909,0.070087,71393.0,71392.0,0.070088]
[1730184475316,0.070083,71397.0,71393.0,0.070086]
[1730184475515,0.0674,71401.0,71393.0,0.070086]
[1730184475714,0.070086,71394.0,71393.0,0.070086]
[1730184475915,0.37368742,71399.0,71392.0,0.001]
[1730184476118,0.070087,71393.0,71392.0,0.001]
[1730184476615,0.070087,71393.0,71391.0,0.09439495]
[1730184477019,0.070087,71393.0,71392.0,0.070088]
[1730184477417,0.070088,71392.0,71391.0,0.09439495]
[1730184478819,0.070088,71392.0,71391.0,0.16448395]
[1730184480108,0.10508141,71392.0,71391.0,0.16448395]
[1730184480313,0.10508141,71392.0,71391.0,0.16548395]
[1730184480834,0.070088,71392.0,71391.0,0.16548395]
[1730184481208,0.10504384,71392.0,71391.0,0.16548395]
[1730184482024,0.10504384,71392.0,71391.0,0.09539495]
[1730184482225,0.10504384,71392.0,71391.0,0.09439495]
[1730184482524,0.10604384,71392.0,71391.0,0.09439495]
[1730184482824,0.14807511,71392.0,71391.0,0.09439495]